Cogmind - Beta 10.2 @@@ ROGUE MODE // 2021.10.10 @ 18:54:23 Player: derk Result: Destroyed by DAS Turret with DAS Cannon Performance ------------- Evolutions (1) 500 Regions Visited (5) 1000 Robots Destroyed (51) 255 Value Destroyed (885) 885 Prototype IDs (24) 480 Alien Tech Used (0) 0 Bonus (237) 237 TOTAL SCORE: 3357 Bonus ------- Follower Combat Kills 66 Aligned with FarCom 300 Friendly Fire -129 Cogmind --------- Core Integrity 0/400 Matter 80/300 Energy 100/100 System Corruption 6% Temperature Cool (0) Movement Treading (220) Ox3 Location -9/Exiles Parts ------- > --- POWER (1) -------- (None) > --- PROPULSION (3) --- Light Treads > --- UTILITY (3) ------ High-capacity Storage Unit High-capacity Storage Unit > --- WEAPON (2) ------- AWS/Thermal > --- INVENTORY (20) --- Improved Heat Sink Trap Reconfigurator PSU Rigger Shock Bomb Launcher Peak State ------------ > --- POWER ------------ (None) > --- PROPULSION ------- Light Treads Light Treads Light Treads > --- UTILITY ---------- High-capacity Storage Unit High-capacity Storage Unit Reactive Plating > --- WEAPON ----------- AWS/Thermal > --- INVENTORY -------- Trap Reconfigurator PSU Rigger Shock Bomb Launcher [Rating: 26] Favorites ----------- Power Improved Ion Engine Engine Improved Ion Engine Power Core Light Nuclear Core Propulsion Light Treads Treads Light Treads Wheel Compact Wheel Utility Large Storage Unit Device Tractor Beam Storage Large Storage Unit Protection Light Armor Plating Weapon Heavy Assault Rifle Energy Gun AWS/Thermal Ballistic Gun Heavy Assault Rifle Ballistic Cannon Improved Light Cannon Launcher Missile Launcher Build | -11 -10 -10 -9 -9 -9 ------- Run | Scr Mat Min Mat Min Exi Slots Evolved 2 | . . . 2 . . Power . | . . . . . . Propulsion 1 | . . . 1 . . Utility 1 | . . . 1 . . Weapon . | . . . . . . Parts Attached 57 | 7 9 4 16 4 17 Power 4 | 1 1 . 2 . . Engine 3 | 1 . . 2 . . Core 1 | . 1 . . . . Reactor . | . . . . . . Propulsion 19 | 2 . . 10 1 6 Treads 18 | 2 . . 9 1 6 Leg . | . . . . . . Wheel 1 | . . . 1 . . Hover . | . . . . . . Flight . | . . . . . . Utility 13 | 2 3 . 2 . 6 Device 2 | 1 1 . . . . Storage 6 | 1 2 . . . 3 Processor . | . . . . . . Hackware . | . . . . . . Protection 5 | . . . 2 . 3 Artifact . | . . . . . . Weapon 21 | 2 5 4 2 3 5 Energy Gun 3 | 1 . . 1 . 1 Energy Cannon . | . . . . . . Ballistic Gun 14 | 1 4 3 1 2 3 Ballistic Cannon 2 | . 1 . . . 1 Launcher 2 | . . 1 . 1 . Special Weapon . | . . . . . . Impact Weapon . | . . . . . . Slashing Weapon . | . . . . . . Piercing Weapon . | . . . . . . Special Melee Weapon . | . . . . . . Unidentified Prototypes 1 | . . . 1 . . Parts Lost 17 | . . . 1 2 14 Power 2 | . . . 1 . 1 Propulsion 6 | . . . . 1 5 Utility 3 | . . . . . 3 Weapon 6 | . . . . 1 5 Highest Loss Streak 7 | . . . 1 1 7 Average Slot Usage (%) 96 | . 100 100 99 100 88 Engine 7 | . 10 . 9 11 8 Core 4 | . 3 14 1 . . Treads 29 | . 28 28 28 33 30 Storage 22 | . 24 28 22 22 17 Protection 5 | . . . 11 11 11 Ballistic Gun 21 | . 23 24 22 21 17 Naked Turns . | . . . . . . Heaviest Build 82 | 10 43 46 48 51 82 Greatest Support 66 | 40 40 40 63 63 66 Greatest Overweight (x) 3 | . 1 1 2 . 3 Average Overweight (x) . | . . 1 . . . Largest Inventory Capacity 20 | 6 16 16 16 16 20 Average Capacity 15 | 5 13 16 16 16 16 Most Carried 18 | 6 16 16 16 16 18 Average Carried 13 | 4 11 15 15 15 12 Final Capacity 20 | 6 16 16 16 16 20 Final Carried 16 | 6 16 16 16 16 4 Class Distribution -------------------- 73% | Mutant 15% | Hauler-Mutant 10% | Scavenger-Mutant Dominant Class ---------------- Mutant | -10/Materials Mutant | -10/Mines Mutant | -9/Materials Scavenger-Mutant | -9/Mines Hauler-Mutant | -9/Exiles Resources | -11 -10 -10 -9 -9 -9 ----------- Run | Scr Mat Min Mat Min Exi Matter Collected 1388 | 255 393 141 305 178 116 Remotely 114 | 104 10 . . . . Salvage Created 1606 | 115 438 142 450 429 32 Parts 118 | 4 33 18 33 30 . Haulers Intercepted 3 | . 1 . 2 . . Recyclers Shooed 1 | . . . . 1 . Parts Field Recycled . | . . . . . . Retrieved Matter . | . . . . . . Parts Self-Destructed . | . . . . . . Prevented . | . . . . . . Kills | -11 -10 -10 -9 -9 -9 ------- Run | Scr Mat Min Mat Min Exi Combat Hostiles Destroyed 34 | . 11 5 9 6 3 Guns 25 | . 10 2 9 2 2 Cannons 2 | . 1 . . . 1 AOE 7 | . . 3 . 4 . Classes Destroyed 10 | 2 4 . 1 2 1 Worker 2 | . . . . 2 . Builder 2 | . . . . 2 . Tunneler 4 | 1 . 3 . . . Hauler 3 | . 1 . 2 . . Recycler 6 | 1 1 . 1 3 . Watcher 2 | . 2 . . . . Swarmer 17 | . 6 3 4 4 . Grunt 9 | . 5 2 . 2 . Sentry 5 | . . . 5 . . Assembled 2 | . . . . . 2 Best Kill Streak 10 | 2 5 4 5 10 2 Combat Bots Only 5 | . 4 3 5 4 2 Max Kills in Single Turn 3 | 1 2 3 1 2 1 Gunslinging 1 | . 1 . . . . Exploded 3 | . . 3 . 2 . Melee . | . . . . . . Uniques/NPCs Destroyed 1 | . . . . . 1 8R-AWN (-9/Exiles) Combat | -11 -10 -10 -9 -9 -9 -------- Run | Scr Mat Min Mat Min Exi Damage Taken 3576 | . 410 216 431 281 2238 Core 517 | . 88 15 45 22 347 Absorbed by Shields . | . . . . . . Core Remaining (%) 79 | 100 . 58 . . . Volleys Fired 135 | 6 42 17 21 23 26 Largest 2 | 2 2 2 2 2 2 Hottest 69 | 60 62 48 48 61 69 Shots Fired 273 | 11 84 32 41 44 61 Gun 234 | 11 76 30 41 41 35 Cannon 34 | . 8 . . . 26 Launcher 5 | . . 2 . 3 . Special . | . . . . . . Kinetic 243 | 6 76 30 41 41 49 Thermal 25 | 5 8 . . . 12 Explosive 2 | . . 2 . . . Electromagnetic 3 | . . . . 3 . Robot Hit Streak 19 | 7 7 14 9 14 19 Robot Miss Streak 5 | 2 4 3 3 5 5 Penetration Max . | . . . . . . Secondary Targets 5 | . 2 . 2 1 . Max Gunslinging Chain 1 | . 1 . 1 1 . Autonomous 12 | . . . . . 12 Shots Hit Robots 184 | 8 45 24 28 27 52 Core Hits 105 | 4 19 15 18 21 28 Critical Hits 3 | . 3 . . . . Critical Kills 1 | . 1 . . . . Critical Parts Destroyed 2 | . 2 . . . . Melee Attacks . | . . . . . . Impact . | . . . . . . Slashing . | . . . . . . Piercing . | . . . . . . Sneak Attacks . | . . . . . . Combat Hostiles . | . . . . . . Follow-up Attacks . | . . . . . . Damage Inflicted 3772 | 84 567 742 574 616 1189 Guns 2583 | 84 545 433 565 392 564 Cannons 647 | . 22 . . . 625 Explosions 529 | . . 309 . 220 . Melee . | . . . . . . Ramming 13 | . . . 9 4 . Kinetic 2802 | 28 544 433 565 392 840 Thermal 507 | 56 23 . . 79 349 Explosive 309 | . . 309 . . . Electromagnetic 141 | . . . . 141 . Impact . | . . . . . . Slashing . | . . . . . . Piercing . | . . . . . . Highest Corruption 6 | . 1 1 . . 6 Average Corruption 1 | . 1 1 . . 5 Corruption Purged . | . . . . . . Effects 14 | . 3 2 . . 9 Message Errors 3 | . . 1 . . 2 Matter Fused 3 | . . . . . 3 Heat Flow Errors 2 | . . . . . 2 Energy Discharges 2 | . 2 . . . . Data Loss (minor) 1 | . 1 . . . . Targeting Errors 3 | . . 1 . . 2 Overload Shots . | . . . . . . Overflow Damage 17 | . . . . 17 . Projectiles . | . . . . . . Explosions 17 | . . . . 17 . Melee . | . . . . . . Knockbacks 1 | . . . . . 1 Impact . | . . . . . . Kinetic 1 | . . . . . 1 Secondary . | . . . . . . Self-Inflicted Damage 109 | . . . . 109 . Shots 5 | . . . . 5 . Rammed 4 | . 1 . 2 1 . Targets Rammed 4 | . 1 . 2 1 . Kicked . | . . . . . . Crushed . | . . . . . . Highest Temperature 186 | 40 40 22 6 25 186 Average Temperature 59 | 20 16 9 4 7 117 Received Heat Transfer 576 | . 66 81 99 90 240 Siege Activations . | . . . . . . Robots Corrupted . | . . . . . . Combat Hostiles . | . . . . . . Parts Fried 1 | . . . . 1 . Impact Corruptions . | . . . . . . Robots Melted . | . . . . . . Combat Hostiles . | . . . . . . Parts Melted 1 | . . . . 1 . Heat Transferred 635 | 125 50 . . 100 360 Parts Sabotaged . | . . . . . . Parts Stolen . | . . . . . . Parts Stripped . | . . . . . . Power Chain Reactions 2 | . . . . 2 . Missiles Intercepted . | . . . . . . Alert | -11 -10 -10 -9 -9 -9 ------- Run | Scr Mat Min Mat Min Exi Peak Influence 215 | 10 169 85 215 173 . Initial 83 | . 6 22 . 83 . Average 63 | 4 74 29 52 146 . Maximum Alert Level 1 | . . . 1 . . Low Security (%) 99 | 100 100 100 96 100 . Level 1 . | . . . 3 . . Level 2 . | . . . . . . Level 3 . | . . . . . . Level 4 . | . . . . . . Level 5 . | . . . . . . High Security . | . . . . . . Max Security . | . . . . . . Squads Dispatched 2 | . 1 1 . . . Investigation 1 | . . 1 . . . Extermination . | . . . . . . Reinforcement 1 | . 1 . . . . Assault . | . . . . . . Garrison . | . . . . . . Intercept . | . . . . . . Construction Impeded . | . . . . . . Haulers Reinforced . | . . . . . . Stealth | -11 -10 -10 -9 -9 -9 --------- Run | Scr Mat Min Mat Min Exi Distress Signals 5 | . 2 . 3 . . Communications Jammed . | . . . . . . Distress Signals . | . . . . . . Times Spotted 67 | . 21 7 19 6 14 Peak Tracking Total 9 | . 6 3 7 4 9 Tactical Retreats 8 | . 4 1 . . 3 Traps | -11 -10 -10 -9 -9 -9 ------- Run | Scr Mat Min Mat Min Exi Traps Triggered 2 | . 1 . 1 . . Indirectly . | . . . . . . Trap Hack Attempts . | . . . . . . Triggered . | . . . . . . Disarmed . | . . . . . . Reprogrammed . | . . . . . . Reused 1 | . . . . . 1 Traps Extracted . | . . . . . . Installed 3 | . . . 1 . 2 Triggered . | . . . . . . Machines | -11 -10 -10 -9 -9 -9 ---------- Run | Scr Mat Min Mat Min Exi Machines Disabled 4 | . . . . 3 1 Max in Single Turn 1 | . . . . 1 1 Machines Sabotaged . | . . . . . . Garrisons Compromised . | . . . . . . Overloaded Fab Kills . | . . . . . . Fab Network Shutdowns . | . . . . . . Hacking | -11 -10 -10 -9 -9 -9 --------- Run | Scr Mat Min Mat Min Exi Machines Accessed 10 | . 3 1 4 . 2 Terminals 5 | . 2 . 3 . . Fabricators . | . . . . . . Repair Stations 2 | . 1 . 1 . . Recycling Units . | . . . . . . Scanalyzers . | . . . . . . Garrison Access . | . . . . . . Total Hacks 34 | . 13 1 14 . 6 Successful 20 | . 6 1 7 . 6 Failed 14 | . 7 . 7 . . Catastrophic . | . . . . . . Database Lockouts . | . . . . . . Manual 16 | . 9 . 6 . 1 Terminals 23 | . 12 . 11 . . Fabricators . | . . . . . . Repair Stations 4 | . 1 . 3 . . Recycling Units . | . . . . . . Scanalyzers . | . . . . . . Garrison Access . | . . . . . . Terminal Hacks 14 | . 4 1 3 . 6 Record 6 | . 1 . . . 5 Open Door 1 | . . 1 . . . Branch Access Points 1 | . . . 1 . . Locate Traps 1 | . 1 . . . . Investigation Status 1 | . 1 . . . . Zone Layout 3 | . 1 . 2 . . EX-Prototype ID Bank 1 | . . . . . 1 Fabricator Hacks . | . . . . . . Repair Station Hacks 2 | . . . 2 . . Scan Component 1 | . . . 1 . . Repair 1 | . . . 1 . . Recycling Unit Hacks . | . . . . . . Scanalyzer . | . . . . . . Garrison Access Hacks . | . . . . . . Unauthorized Hacks 4 | . 2 . 2 . . Terminals 4 | . 2 . 2 . . Track 4 | . 2 . 2 . . Fabricators . | . . . . . . Repair Stations . | . . . . . . Recycling Units . | . . . . . . Scanalyzers . | . . . . . . Garrison Access . | . . . . . . Data Cores Recovered . | . . . . . . Used . | . . . . . . Hacking Detections 7 | . 3 . 4 . . Full Trace Events . | . . . . . . Feedback Events . | . . . . . . Feedback Blocked . | . . . . . . Robot Schematics Acquired . | . . . . . . Robots Built . | . . . . . . Matter . | . . . . . . Time . | . . . . . . Total Robot Build Rating . | . . . . . . Part Schematics Acquired . | . . . . . . Parts Built . | . . . . . . Matter . | . . . . . . Time . | . . . . . . Total Part Build Rating . | . . . . . . Parts Repaired 1 | . . . 1 . . Time 26 | . . . 26 . . Parts Recycled . | . . . . . . Recycled Matter . | . . . . . . Retrieved Matter . | . . . . . . Retrieved Components . | . . . . . . Parts Scanalyzed . | . . . . . . Part Schematics Acquired . | . . . . . . Parts Damaged . | . . . . . . Bothacking | -11 -10 -10 -9 -9 -9 ------------ Run | Scr Mat Min Mat Min Exi Used RIF Installer . | . . . . . . Robots Hacked . | . . . . . . Non-combat . | . . . . . . Combat . | . . . . . . Robot Hacks Applied . | . . . . . . Relay Couplers Released . | . . . . . . Robots Rewired . | . . . . . . Allies Hacked . | . . . . . . Hacks Repelled . | . . . . . . Allies | -11 -10 -10 -9 -9 -9 -------- Run | Scr Mat Min Mat Min Exi Total Allies 1 | . . 1 . . . Largest Group 1 | . . 1 . . . Highest-Rated Group 31 | . . 31 . . . Highest-Rated Ally 31 | . . 31 . . . Total Orders . | . . . . . . Ally Attacks 5 | . . 5 . . . Total Damage 107 | . . 107 . . . Kills 2 | . . 2 . . . Allies Corrupted . | . . . . . . Allies Melted . | . . . . . . Intel | -11 -10 -10 -9 -9 -9 ------- Run | Scr Mat Min Mat Min Exi Robot Analysis Total . | . . . . . . Derelict Logs Recovered 4 | . . 3 . 1 . Drone Launches . | . . . . . . Drone Recoveries . | . . . . . . Exploration | -11 -10 -10 -9 -9 -9 ------------- Run | Scr Mat Min Mat Min Exi Turns Passed 5841 | 113 1398 1251 723 519 1837 Spaces Moved 3043 | 45 669 656 399 279 995 Core 2 | 2 . . . . . Treads 2896 | 43 669 656 254 279 995 Legs . | . . . . . . Wheels 145 | . . . 145 . . Hover . | . . . . . . Flight . | . . . . . . Fastest Speed 50 | 50 160 180 120 160 160 Average Speed 170 | 155 175 180 145 160 173 Slowest Speed 220 | 160 180 180 200 160 220 Overloaded Moves . | . . . . . . Propulsion Burnouts . | . . . . . . Robots Hopped . | . . . . . . Cave-ins Triggered . | . . . . . . Exploration Rate (%) 59 | 6 74 100 46 58 71 Regions Visited 5 Branch Regions 3 Pre-discovered Areas 4 | . . 3 . . 1 Known Exits Taken 1 | . . . 1 . . Unknown Exits Taken 4 | 1 1 1 . 1 . Scrap Searched 1 | . . 1 . . . Spaces Dug . | . . . . . . Terrain Destroyed 42 | . 2 28 . 12 . Melee . | . . . . . . Projectile 2 | . 2 . . . . AOE 40 | . . 28 . 12 . Terrain Rammed . | . . . . . . Walls Destroyed . | . . . . . . Machines Disabled . | . . . . . . Actions | -11 -10 -10 -9 -9 -9 --------- Run | Scr Mat Min Mat Min Exi Total 3469 | 75 815 701 507 308 1063 Wait 128 | 12 69 3 44 . . Move 3038 | 44 668 655 398 278 995 Hop . | . . . . . . Pick Up 51 | 6 14 10 9 2 10 Fast Attach 19 | 7 5 . 4 . 3 Attach 14 | . . . 4 2 8 Detach 2 | . 1 . 1 . . Swap 24 | . 4 4 8 2 6 Drop 51 | . 11 12 15 . 13 Fire 135 | 6 42 17 21 23 26 Melee . | . . . . . . Ram . | . . . . . . Kick . | . . . . . . Crush 4 | . 1 . 2 1 . Escape Stasis . | . . . . . . Rewire . | . . . . . . Trap 3 | . . . 1 . 2 Miscellaneous . | . . . . . . Route ------- -11/Scrapyard -10/Materials (discovered 5 exits: *Mat x3 / *Min x2) -10/Mines (discovered 2 exits: *Mat x2) -9/Materials (discovered 4 exits: [*Mat x2] / *Min x2) -9/Mines (discovered 2 exits: [*Mat] / *Exi) -9/Exiles History --------- Turn | Location | Event 34 | -11/Scrapyard | Discovered new exit (range 15) 114 | -11/Scrapyard | Entered Materials 307 | -10/Materials | Build established: Mutant 365 | -10/Materials | Discovered new exit (range 10) 478 | -10/Materials | Discovered new exit (range 9) 558 | -10/Materials | Discovered new exit (range 5) 874 | -10/Materials | Discovered new exit (range 8) 1035 | -10/Materials | Discovered new exit (range 15) 1512 | -10/Materials | Entered Mines 1523 | -10/Mines | Learned location of Storage (-8) 1703 | -10/Mines | Received a Mining Laser from a helpful Derelict 1847 | -10/Mines | Discovered new exit (range 7) 1931 | -10/Mines | Met a Derelict shopkeep closing up shop 2051 | -10/Mines | Discovered new exit (range 3) 2476 | -10/Mines | Found a hidden stash of uninstalled traps 2763 | -10/Mines | Entered Materials 2763 | -9/Materials | Evolved 2 slots: Propulsion x1, Utility x1 2843 | -9/Materials | Repaired Lgt. Treads 2864 | -9/Materials | Identified exit to Mines 3132 | -9/Materials | Discovered new exit (range 16) 3346 | -9/Materials | Discovered new exit (range 13) 3486 | -9/Materials | Entered Mines 3645 | -9/Mines | Deemed a non-threat by the Exiles lab entrance 3645 | -9/Mines | Discovered new exit (range 5) 3760 | -9/Mines | Learned 8 Materials zone layouts 3814 | -9/Mines | Build established: Scavenger-Mutant 3814 | -9/Mines | Discovered new exit (range 9) 4005 | -9/Mines | Entered Exiles 4044 | -9/Exiles | Met 8R-AWN 4071 | -9/Exiles | Met EX-HEX 4230 | -9/Exiles | Met EX-DEC 4277 | -9/Exiles | Learned location of Zion (-7) 4435 | -9/Exiles | Build established: Hauler-Mutant 4446 | -9/Exiles | Met EX-BIN 4466 | -9/Exiles | Aligned with FarCom system 4468 | -9/Exiles | Given EX-Vault access code 4509 | -9/Exiles | Opened EX-Vault 4549 | -9/Exiles | Warned to stay clear of 0b10 Research branches 5245 | -9/Exiles | Build established: Mutant 5327 | -9/Exiles | Found Trap Reconfigurator 5331 | -9/Exiles | Found PSU Rigger 5338 | -9/Exiles | Found AWS/Thermal 5465 | -9/Exiles | Attacked by the Exiles 5502 | -9/Exiles | Core integrity fell below 50% 5533 | -9/Exiles | Lost 7 parts (1p1n2u3w) 5549 | -9/Exiles | Destroyed 8R-AWN 5576 | -9/Exiles | Lost 4 parts (2n2w) 5821 | -9/Exiles | Core integrity fell below 20% 5842 | -9/Exiles | Destroyed by DAS Turret with DAS Cannon Last Messages --------------- 05549_ 8R-AWN destroyed. 05550_ Acquired 20 matter. 05551_ as-17467 destroyed. 05554_ Acquired 16 matter. 05561_ System corrupted: Heat flow error (+165). 05586_ Acquired 20 matter. 05588_ Acquired 12 matter. 05602_ Acquired 15 matter. 05603_ System corrupted: Matter fused (-7). 05628_ System corrupted: Heat flow error (+208). 05670_ System corrupted: Matter fused (-6). 05706_ Acquired Lgt. Treads. 05740_ Acquired Hcp. Storage Unit. 05743_ Acquired Imp. Heat Sink. 05774_ Machine disabled. 05803_ XVXO|B<7BGV3CEKLVPX 3EGBE/|W 05819_ System corrupted: Matter fused (-9). 05826_ Lgt. Treads destroyed. 05840_ Reactive Plating destroyed. 05842_ DAS Turret heat damages Prototype Ballistic Cannon. Map ----- +----------------------------------------------------+ | ]= ###?????????#"" ""#???????##" ######### | | ##????????### ###??????##"" #???????? | | ###"" ######???### ###?######"" #???????? | | #?##" """#####X# #"###""""""" ##??????? | | #??#" """""" " "" ##???### | | ???#"# "" """ " #####"" | | ???#### " " | | ??????### | | ????????### | | ??????????## | | ???????????## | | ????????????##" | | ?????????????#""" """""" | | ????????????##" ######""" | | ????????????#"" ""##????#####""" | | ???????????##""" """##?????????##""" | | ???????????#""" """##???????????#"""" | | ???????????#"""* ""#???????????##"" | | ???????????#"" * ########??####"""" | | ???????????#""" t ##aaa####""" | | ???????????#"" """" | | ???????????##"" | | ????????????#"""" | | ????????????## | | ?????????????#" " "" | | ?????????????#"""" @ ""## ##""" " " | | ?????????????#"" ""#### ######""" " | | ?????????????#" """"##??# #????###""" | | ?????????????#""" """#??## ####???#### | | ?????????????## ""##??# "!#??????? | | ??????????????#"" """##???#" !#??????? | | ??????????????##""" ##????#" "#??????? | | ???????????????##"""" ##?????# !""!"#??????? | | ????????????????### #??????########??????? | | ??????????????????##### ##????????????????????? | | ??????????????????????## #?????????????????????? | | ???????????????????????# #?????????????????????? | | ???????????????????????# #?????????????????????? | | ???????????????????????# #?????????????????????? | | ???????????????????????# #?????????????????????? | | ???????????????????????# #?????????????????????? | | ???????????????????????# #?????????????????????? | | ???????????????????????# #?????????????????????? | | ???????????????????????# #?????????????????????? | | ???????????????????????# #?????????????????????? | | ???????????????????????# #?????????????????????? | | ???????????????????????" "?????????????????????? | | ??????????????????????? ?????????????????????? | | ?????????????????????? ????????????????????? | | ?????????????????????? ????????????????????? | +----------------------------------------------------+ Best States ------------- Heat Dissipation 28 Coolant Potential 50 Energy Generation 14 Energy Capacity 265 Matter Stores 300 Matter Capacity 300 Sight Range 16 Terrain Scan Density 10 Armor Coverage 600 Resistance: KI 20 Evasion (%) 40 Recoil Reduction 3 Item Schematics ----------------- None Robot Schematics ------------------ None Fabricated ------------ Nothing Alien Tech Used ----------------- None Achievements -------------- None Challenges ------------ None Game ------ Seed PlasmaLaserDatajack Manual? 0 Play Time 00:35:59 Cumulative 304.2 hours Start 2021.10.10 @ 16:38:57 End 2021.10.10 @ 18:54:23 Sessions 3 Manual Loads 0 Difficulty Rogue Special Mode None Game No. 116 Rogue 116 Adventurer 0 Explorer 0 Win Type - Total 12 Types 10/0/1/1/0/0/0/0/0 Lore% 66 Gallery% 87 Achievement% 67 Wizard Run 0 Options --------- ASCII 0 Keyboard 0 Movement Numpad Keybinds 0 Fullscreen 1 Font 18/SmallcapsGlow Map View 76x50 Tactical HUD 1 Map Filters NONE Filters NONE Steam 1 RUN: 256b52ac-66e4-4b92-9f53-5a4e2c8a039f